Cogmind - Beta 15 @@@ ROGUE MODE // 2025.05.28 @ 22:11:15 Player: aloola Result: Destroyed by G-47 Trooper with Particle Gun Performance ------------- Evolutions (0) 0 Regions Visited (2) 400 Robots Destroyed (4) 20 Value Destroyed (145) 145 Prototype IDs (0) 0 Alien Tech Used (0) 0 Bonus (46) 46 TOTAL SCORE: 611 Bonus ------- Follower Combat Kills 46 Cogmind --------- Core Integrity 0/250 Matter 286/300 Energy 92/100 System Corruption 2% Temperature Cool (15) Movement Core (50) Location -10/Mines Parts ------- > --- POWER (1) -------- (None) > --- PROPULSION (2) --- Light Treads > --- UTILITY (2) ------ Signal Interpreter > --- WEAPON (2) ------- (None) > --- INVENTORY (5) ---- Ion Engine Compact Wheel Assault Rifle Light Assault Rifle Peak State ------------ > --- POWER ------------ Light Ion Engine > --- PROPULSION ------- Flight Unit Flight Unit > --- UTILITY ---------- Signal Interpreter Seismic Detector > --- WEAPON ----------- Small Laser Mining Laser > --- INVENTORY -------- Ion Engine Light Treads Compact Wheel Assault Rifle Light Assault Rifle [Rating: 7] Favorites ----------- Power Light Ion Engine Engine Light Ion Engine Propulsion Light Treads Treads Light Treads Flight Unit Flight Unit Utility Signal Interpreter Device Seismic Detector Processor Signal Interpreter Weapon Small Laser Energy Gun Small Laser Ballistic Gun Light Assault Rifle Special Weapon Mining Laser Build | -11 -10 -10 ------- Run | Yrd Mat Min Slots Evolved . | . . . Power . | . . . Propulsion . | . . . Utility . | . . . Weapon . | . . . Parts Attached 11 | 5 1 5 Power 1 | . . 1 Engine 1 | . . 1 Core . | . . . Reactor . | . . . Propulsion 4 | 2 . 2 Treads 2 | 2 . . Leg . | . . . Wheel . | . . . Hover . | . . . Flight 2 | . . 2 Utility 2 | 1 1 . Device 1 | 1 . . Storage . | . . . Processor 1 | . 1 . Hackware . | . . . Protection . | . . . Artifact . | . . . Weapon 4 | 2 . 2 Energy Gun 2 | 1 . 1 Energy Cannon . | . . . Ballistic Gun 1 | . . 1 Ballistic Cannon . | . . . Launcher . | . . . Special Weapon 1 | 1 . . Impact Weapon . | . . . Slashing Weapon . | . . . Piercing Weapon . | . . . Special Melee Weapon . | . . . Unidentified Prototypes . | . . . Parts Lost 7 | . . 7 Power 1 | . . 1 Propulsion 2 | . . 2 Utility 1 | . . 1 Weapon 3 | . . 3 Highest Loss Streak 7 | . . 7 To Critical Strikes . | . . . Average Backups 4 | 3 4 4 Power . | . 1 1 Propulsion 1 | 1 1 1 Utility . | . . . Weapon 1 | 1 2 2 Tool/Special . | . . . Unused Backups 5 | 1 . 4 Power 1 | . . 1 Propulsion 2 | 1 . 1 Utility . | . . . Weapon 2 | . . 2 Tool/Special . | . . . Average Slot Usage (%) 62 | . 82 59 Engine 3 | . . 3 Treads 8 | . 28 6 Flight 7 | . . 8 Device 9 | . 14 8 Processor 13 | . 11 14 Energy Gun 10 | . 14 10 Ballistic Gun 3 | . . 3 Special Weapon 5 | . 14 3 Peak Build Rating 7 | 5 6 7 Average Rating 4 | 2 5 4 On Entrance 3 | . 5 6 Naked Turns . | . . . Heaviest Build 6 | 3 3 6 Greatest Support 8 | 3 3 8 Greatest Overweight (x) . | . . . Average Overweight (x) . | . . . Largest Inventory Capacity 5 | 5 5 5 Average Capacity 5 | 5 5 5 Most Carried 5 | 5 4 5 Average Carried 4 | 4 4 4 Final Capacity 5 | 5 5 5 Final Carried 4 | 4 4 4 Class Distribution -------------------- 75% | Mutant 25% | Scavenger-Mutant Dominant Class ---------------- Mutant | -10/Materials Mutant | -10/Mines Resources | -11 -10 -10 ----------- Run | Yrd Mat Min Matter Collected 310 | 178 . 132 Remotely . | . . . Salvage Created 166 | 10 . 156 Parts 12 | 4 . 8 Haulers Intercepted . | . . . Recyclers Shooed . | . . . Parts Field Recycled . | . . . Retrieved Matter . | . . . Parts Self-Destructed . | . . . Prevented . | . . . Kills | -11 -10 -10 ------- Run | Yrd Mat Min Combat Hostiles Destroyed 3 | . . 3 Guns 3 | . . 3 Classes Destroyed 2 | 1 . 1 Tunneler 1 | 1 . . Grunt 3 | . . 3 Best Kill Streak 2 | 1 . 2 Combat Bots Only 2 | . . 2 Max Kills in Single Turn 1 | 1 . 1 Gunslinging . | . . . Exploded . | . . . Melee . | . . . Uniques/NPCs Destroyed . | . . . Combat | -11 -10 -10 -------- Run | Yrd Mat Min Hostile Shots Fired 38 | . . 38 Missed 12 | . . 12 Hits 26 | . . 26 Projectile 26 | . . 26 AOE 11 | . . 11 Damage Taken 605 | . . 605 Core 257 | . . 257 Absorbed by Shields . | . . . Core Remaining (%) 100 | 100 . . Volleys Fired 21 | 2 2 17 Largest 2 | 1 1 2 Hottest 140 | 40 40 140 Shots Fired 33 | 2 2 29 Gun 31 | 2 2 27 Cannon . | . . . Launcher . | . . . Special 2 | . . 2 Kinetic 10 | . . 10 Thermal 23 | 2 2 19 Explosive . | . . . Electromagnetic . | . . . Robot Hit Streak 10 | 2 3 10 Robot Miss Streak 3 | . 1 3 Penetration Max . | . . . Secondary Targets . | . . . Shots Hit Robots 24 | 2 1 21 Core Hits 9 | 1 1 7 Critical Kills . | . . . Critical Parts Destroyed . | . . . Critical Strikes . | . . . Melee Attacks . | . . . Impact . | . . . Slashing . | . . . Piercing . | . . . Sneak Attacks . | . . . Combat Hostiles . | . . . Follow-up Attacks . | . . . Damage Inflicted 251 | 20 11 220 Guns 227 | 20 11 196 Cannons . | . . . Explosions . | . . . Melee . | . . . Ramming . | . . . Kinetic 77 | . . 77 Thermal 174 | 20 11 143 Explosive . | . . . Electromagnetic . | . . . Impact . | . . . Slashing . | . . . Piercing . | . . . Highest Corruption 2 | . 2 2 Average Corruption 2 | . 2 2 Corruption Purged . | . . . Corruption Blocked . | . . . Effects 5 | . . 5 Message Errors 3 | . . 3 Matter Fused 1 | . . 1 Energy Discharges 1 | . . 1 Overload Shots . | . . . Overflow Damage . | . . . Projectiles . | . . . Explosions . | . . . Melee . | . . . Knockbacks . | . . . Impact . | . . . Kinetic . | . . . Secondary . | . . . Self-Inflicted Damage . | . . . Shots . | . . . Rammed . | . . . Targets Rammed . | . . . Kicked . | . . . Crushed . | . . . Highest Temperature 140 | . 15 140 Average Temperature 52 | . 12 54 Received Heat Transfer 144 | . . 144 Siege Activations . | . . . Martial Activations . | . . . Shielding Activations . | . . . Robots Disrupted . | . . . Combat Hostiles . | . . . Robots Corrupted . | . . . Combat Hostiles . | . . . Parts Fried . | . . . Impact Corruptions . | . . . Robots Melted . | . . . Combat Hostiles . | . . . Parts Melted . | . . . Heat Transferred 400 | 50 25 325 Parts Sabotaged . | . . . Parts Stolen . | . . . Parts Stripped . | . . . Power Chain Reactions . | . . . Alert | -11 -10 -10 ------- Run | Yrd Mat Min Maximum Alert Level . | . . . Low Security (%) 100 | 100 100 100 Level 1 . | . . . Level 2 . | . . . Level 3 . | . . . Level 4 . | . . . Level 5 . | . . . High Security . | . . . Max Security . | . . . Peak Influence 111 | 5 6 111 Initial . | . . . Average 29 | . . 39 Influence Increases 217 | 5 6 206 Destroy 0b10 Robot/C 140 | . . 140 Destroy 0b10 Robot/NC 10 | 5 . 5 Destroy Leader 30 | . . 30 Allied During Kill 15 | . . 15 Successful Hack 6 | . 6 . Disable Machine 15 | . . 15 Destroy Structure 1 | . . 1 Influence Decreases 217 | 5 6 206 Time Decay 107 | 5 6 96 Lost Part 70 | . . 70 Lost Ally 40 | . . 40 Squads Dispatched 2 | . 2 . Investigation 1 | . 1 . Extermination . | . . . Reinforcement 1 | . 1 . Assault . | . . . Garrison . | . . . Intercept . | . . . Searches Triggered . | . . . Construction Impeded . | . . . Haulers Reinforced . | . . . Active Scanning Responses . | . . . Cargo Convoy Interrupts . | . . . Stealth | -11 -10 -10 --------- Run | Yrd Mat Min Distress Signals . | . . . Communications Jammed . | . . . Distress Signals . | . . . Times Spotted 17 | . 1 16 Peak Tracking Total 19 | . 1 19 Tactical Retreats 2 | . . 2 Traps | -11 -10 -10 ------- Run | Yrd Mat Min Traps Triggered 2 | . 2 . Indirectly . | . . . Trap Hack Attempts . | . . . Triggered . | . . . Disarmed . | . . . Reprogrammed . | . . . Reused . | . . . Traps Extracted . | . . . Installed . | . . . Triggered . | . . . Machines | -11 -10 -10 ---------- Run | Yrd Mat Min Machines Disabled 1 | . . 1 Max in Single Turn . | . . . Machines Repaired . | . . . Machines Dismantled . | . . . Machines Sabotaged . | . . . Overloaded Fab Kills . | . . . Hacking | -11 -10 -10 --------- Run | Yrd Mat Min Machines Accessed 4 | . 4 . Terminals 3 | . 3 . Fabricators . | . . . Repair Stations . | . . . Recycling Units 1 | . 1 . Scanalyzers . | . . . Garrison Access . | . . . Total Hacks 12 | . 12 . Successful 4 | . 4 . Failed 8 | . 8 . Catastrophic 1 | . 1 . Database Lockouts . | . . . Manual 10 | . 10 . Terminals 10 | . 10 . Fabricators . | . . . Repair Stations . | . . . Recycling Units 2 | . 2 . Scanalyzers . | . . . Garrison Access . | . . . Terminal Hacks . | . . . Fabricator Hacks . | . . . Repair Station Hacks . | . . . Recycling Unit Hacks 1 | . 1 . Report Inventory 1 | . 1 . Scanalyzer . | . . . Garrison Access Hacks . | . . . Unauthorized Hacks 3 | . 3 . Terminals 2 | . 2 . Assimilate 1 | . 1 . Botnet 1 | . 1 . Fabricators . | . . . Repair Stations . | . . . Recycling Units 1 | . 1 . Recyclers 1 | . 1 . Scanalyzers . | . . . Garrison Access . | . . . Data Cores Recovered . | . . . Used . | . . . Hacking Detections 3 | . 3 . Full Trace Events 1 | . 1 . Feedback Events . | . . . Feedback Blocked . | . . . Robot Schematics Acquired . | . . . Robots Built . | . . . Authchips . | . . . Time . | . . . Total Robot Build Rating . | . . . Part Schematics Acquired . | . . . Parts Built . | . . . Authchips . | . . . Time . | . . . Total Part Build Rating . | . . . Parts Repaired . | . . . Time . | . . . Parts Recycled . | . . . Recycled Matter . | . . . Retrieved Matter . | . . . Retrieved Components . | . . . Parts Scanalyzed . | . . . Part Schematics Acquired . | . . . Parts Damaged . | . . . Bothacking | -11 -10 -10 ------------ Run | Yrd Mat Min Used RIF Installer . | . . . Robots Hacked . | . . . Non-combat . | . . . Combat . | . . . Robot Hacks Applied . | . . . Relay Couplers Released . | . . . Fabnet Peak Effective % . | . . . Robots Rewired . | . . . Allies Hacked . | . . . Hacks Repelled . | . . . Allies | -11 -10 -10 -------- Run | Yrd Mat Min Total Allies 3 | . . 3 Largest Group 3 | . . 3 Highest-Rated Group 40 | . . 40 Highest-Rated Ally 16 | . . 16 Total Orders 2 | . . 2 STAY 2 | . . 2 Ally Attacks 22 | . . 22 Total Damage 229 | . . 229 Kills 6 | . . 6 Allies Corrupted . | . . . Allies Melted . | . . . Intel | -11 -10 -10 ------- Run | Yrd Mat Min Active Infowar (turns) 250 | 9 44 197 Seismic 250 | 9 44 197 Robot Analysis Total . | . . . Derelict Logs Recovered 2 | . . 2 Drone Launches . | . . . Drone Recoveries . | . . . Exploration | -11 -10 -10 ------------- Run | Yrd Mat Min Turns Passed 432 | 62 44 326 Spaces Moved 535 | 85 72 378 Core 409 | 85 72 252 Treads . | . . . Legs . | . . . Wheels . | . . . Hover . | . . . Flight 126 | . . 126 Fastest Speed 37 | 50 50 37 Average Speed 46 | 50 50 45 Slowest Speed 50 | 50 50 50 Overloaded Moves . | . . . Propulsion Burnouts . | . . . Robots Hopped . | . . . Potential Cave-ins . | . . . Cave-ins Triggered . | . . . Exploration Rate (%) 28 | 3 21 61 Regions Visited 2 Branch Regions 1 Pre-discovered Areas . | . . . Known Exits Taken 1 | . 1 . Unknown Exits Taken 1 | 1 . . Scrap Searched . | . . . Spaces Dug . | . . . Terrain Destroyed 1 | . . 1 Melee . | . . . Projectile 1 | . . 1 AOE . | . . . Terrain Rammed . | . . . Walls Destroyed . | . . . Machines Disabled . | . . . Actions | -11 -10 -10 --------- Run | Yrd Mat Min Total 676 | 100 76 500 Wait 98 | 2 2 94 Move 533 | 84 71 378 Hop . | . . . Pick Up 7 | 6 . 1 Fast Attach 10 | 4 1 5 Attach 2 | 1 . 1 Detach 1 | . . 1 Swap . | . . . Drop 4 | 1 . 3 Fire 21 | 2 2 17 Melee . | . . . Ram . | . . . Kick . | . . . Crush . | . . . Escape Stasis . | . . . Rewire . | . . . Trap . | . . . Miscellaneous . | . . . Route ------- -11/Scrapyard -10/Materials -10/Mines (discovered 1 exit: *Mat) History --------- Turn | Location | Event 2 | -11/Scrapyard | Met Revision 17 8 | -11/Scrapyard | Discovered new exit (range 16) 63 | -11/Scrapyard | Entered Materials 101 | -10/Materials | Discovered new exit (range 12) 106 | -10/Materials | Identified exit to Mines 107 | -10/Materials | Entered Mines 110 | -10/Mines | Assisted by bots powering up and referring to "LRC-V3" 110 | -10/Mines | Learned Materials stockpile data 134 | -10/Mines | Discovered new exit (range 6) 136 | -10/Mines | Identified exit to Materials 201 | -10/Mines | Assembled infested the area 206 | -10/Mines | Assisted by a Guerilla fighting off Assembled 228 | -10/Mines | YI-UF0 nonchalantly dropped a Grenade Launcher on the ground 327 | -10/Mines | Core integrity fell below 50% 351 | -10/Mines | Lost 7 parts (1p2n1u3w) 428 | -10/Mines | Core integrity fell below 20% 433 | -10/Mines | Destroyed by G-47 Trooper with Particle Gun Last Messages --------------- 00263_ Flight Unit destroyed. 00269_ Lgt. Ion Engine destroyed. 00273_ Flight Unit destroyed. 00275_ Lgt. Assault Rifle destroyed. 00275_ G-47 Trooper destroyed. 00281_ Acquired Sml. Laser. 00282_ Acquired 10 matter. 00304_ Seismic Detector destroyed. 00304_ Sml. Laser destroyed. 00305_ System corrupted: Matter fused (-9). 00306_ The unstable cave ceiling collapses. 00317_ T-07 Excavator is excavating. 00320_ Sml. Laser destroyed. 00321_ ZRCG1LZ1VEMER| FQMNLANP= UT=VS4X:U3B 00321_ YI-UF0 mumbles something. 00325_ The unstable cave ceiling collapses. 00384_ E WU<7WMHKTH9Q%F>BIJO69NQESF>TFCL4/O 00419_ YI-UF0 mumbles something. 00424_ Acquired derelict log, extracted data. Data stored: Storage entrances (x1). Map ----- +----------------------------------------------------+ | | | | | | | | | | | ??????????????????????????????????????????? | | ??????????????????????????????????????????? | | ??????????????????????????????????????????? | | ??????????????????????????????????????????? | | ??????????????????????????????????????????? | | ??????????????????????????????????????????? | | ??????????????????????????????????????????? | | ??????????????????????????????????????????? | | ??????????????????????????????????????????? | | ??????????????????????????????????????????? | | ??????????????????????????????????????????? | | ???????????????????????####???????????????? | | ??????????????????????? $ ???????????????? | | ???????????????????????# #???????????????? | | ???????????????????????# #???????????????? | | ???????????????????????# #???????????????? | | ???????????????????????# #???????????????? | | ???????????????????????# #???????????????? | | ???????????????????????# #???????????????? | | ???????????????????????# #???????????????? | | ???????????????????????# @#???????????????? | | ???????????????????????# #???????????????? | | ???????????????????????# g###?????????????? | | ???????????????????????# ###???????????? | | ??????????????????????##gt ##??????????? | | ?????????????????????## #??????????? | | ?????????????????????# #??????????? | | ????????????????????## #??????????? | | ???????????????????## ##??????????? | | ??????????????????## ##???????????? | | ????? ??????????## ##????????????? | | ???? ###### ####?????????????? | | ???? ####????????????????? | | ???? ##????####???????????? | | ?????? #### ## ###????## ####????????? | | ??????????###?#??# ###???## ###??????? | | ??????????# ????# #?### ##?????? | | ??????????# #????### ### #?????? | | ??????????# #??????# ## #?????? | | ??????????# #?????## ## ##?????? | | ??????????# #????## #### #??????? | | ???????#### #???## """ #?## ##??????? | | ??????## ##### """ ##?# ##??????? | | ####?## % """ ##??# ##?????? | | ## ######## ##???## ####??? | +----------------------------------------------------+ Best States ------------- Heat Dissipation 25 Energy Generation 10 Energy Capacity 125 Matter Stores 300 Matter Capacity 300 Sight Range 16 Terrain Scan Density 10 Evasion (%) 62 Recoil Reduction 1 Item Schematics ----------------- None Robot Schematics ------------------ None Fabricated ------------ Nothing Repaired ---------- Nothing Alien Tech Used ----------------- None Achievements -------------- None Challenges ------------ None Game ------ Seed DecoyHeartMaul Manual? 0 Play Time 00:20:15 Cumulative 92.4 hours Start 2025.05.28 @ 21:43:40 End 2025.05.28 @ 22:11:15 Sessions 1 Manual Loads 0 Difficulty Rogue Special Mode None Game No. 44 Rogue 44 Adventurer 0 Explorer 0 Win Type - Total 5 Types 5/0/0/0/0/0/0/0/0/0 Lore% 58 Gallery% 50 Achievement% 41 Wizard Run 0 Options --------- Layout 0 ASCII 0 Keyboard 1 Movement Numpad Keybinds 0 Fullscreen 1 Font 18/Cog Map View 76x50 Zoom Use 0% Tactical HUD 1 Map Filters NONE Filters NONE Steam 1 RUN: 2a2cf5bb-d21e-40da-9901-68ebf4d4f6a6